bitfinex-derivatives/quotes_ETHF0:USTF0_20250321
["timestamp","ask_amount","ask_price","bid_price","bid_amount"]
[1742569117772,2.3346,1952.9,1952.8,3.511]
[1742569118365,1.02466,1952.8,1952.7,0.6519]
[1742569118565,2.33466,1952.8,1952.7,4.1619]
[1742569118760,2.33466,1952.8,1952.7,5.18661]
[1742569119264,2.33466,1952.8,1952.7,8.39441]
[1742569120461,1.31,1952.8,1952.7,8.39441]
[1742569121072,2.33466,1952.8,1952.7,8.39441]
[1742569121472,2.33466,1952.8,1952.7,3.8597]
[1742569121773,2.33466,1952.8,1952.7,4.1619]
[1742569122768,1.31,1952.8,1952.7,5.18661]
[1742569122973,0.6901,1953.0,1952.7,4.1619]
[1742569123163,1.4174,1952.9,1952.8,1.02466]
[1742569123676,2.442,1952.9,1952.8,1.02466]
[1742569123874,1.02466,1952.8,1952.7,5.18657]
[1742569124067,2.44206,1952.8,1952.7,5.18657]
[1742569126478,2.44206,1952.8,1952.7,6.57497]
[1742569127579,1.4174,1952.8,1952.7,6.57497]
[1742569127877,1.71468,1953.0,1952.9,1.0246]
[1742569128176,1.71468,1953.0,1952.9,4.5336]
[1742569128976,1.71468,1953.0,1952.9,5.9565]
[1742569129374,1.71465,1953.0,1952.9,5.9565]
[1742569130682,0.6901,1953.0,1952.9,5.9565]
[1742569130978,1.71465,1953.0,1952.9,5.9565]
[1742569134583,1.02444,1953.3,1953.2,1.02443]
[1742569134791,1.3555,1953.4,1953.1,6.0702]
[1742569135081,2.37988,1953.4,1953.3,1.02439]
[1742569135281,1.02442,1953.3,1953.2,1.0244]
[1742569135488,0.6605,1953.4,1953.3,1.02439]
[1742569135686,1.68484,1953.4,1953.3,4.53339]
[1742569135879,2.98484,1953.4,1953.3,4.53339]
[1742569136589,1.9605,1953.4,1953.3,4.53339]
[1742569136788,2.98484,1953.4,1953.3,4.53339]
[1742569138388,3.2078,1953.9,1953.5,1.02426]
[1742569138688,1.02431,1953.5,1953.4,2.39849]
[1742569138885,1.02431,1953.5,1953.4,5.90649]
[1742569140096,2.42506,1953.6,1953.5,1.02429]
[1742569140297,2.42506,1953.6,1953.5,2.39849]
[1742569140496,1.02429,1953.5,1953.4,4.5323]
[1742569140787,2.32609,1953.5,1953.4,5.8677]
[1742569141192,1.3018,1953.5,1953.4,5.8677]
[1742569141887,2.32609,1953.5,1953.4,5.8677]
[1742569142483,2.32609,1953.5,1953.4,5.86774]
[1742569142684,1.3018,1953.5,1953.4,9.07554]
[1742569142884,1.02425,1953.6,1953.5,1.02424]
[1742569143087,2.32605,1953.6,1953.5,2.35964]
[1742569144185,2.32605,1953.6,1953.5,1.3354]
[1742569145794,2.32605,1953.6,1953.5,2.35969]
[1742569146395,2.32605,1953.6,1953.5,3.05369]
[1742569146801,1.3018,1953.6,1953.5,3.05369]
[1742569147093,2.32604,1953.6,1953.5,3.05369]
[1742569148894,0.6717,1953.8,1953.7,1.02419]
[1742569149093,1.69583,1953.8,1953.7,7.73899]
[1742569149295,1.69583,1953.8,1953.7,6.7148]
[1742569149696,1.69583,1953.8,1953.7,7.73899]
[1742569149898,0.6706,1954.0,1953.7,3.507]
[1742569150107,2.36579,1954.0,1953.9,1.02408]
[1742569150304,1.02408,1953.9,1953.8,2.37609]
[1742569150501,2.42158,1953.9,1953.8,2.37609]
[1742569151691,1.02424,1953.7,1953.6,1.02422]
[1742569151896,2.56034,1953.8,1953.5,0.694]
[1742569151897,6.51829,1953.8,1953.5,0.694]
[1742569152103,1.02434,1953.4,1953.3,3.21547813]
[1742569152312,1.02434,1953.4,1953.3,5.89006813]
[1742569153000,1.3975,1953.5,1953.4,1.02434]
[1742569153305,2.42179,1953.5,1953.4,3.11444]
[1742569154508,1.3975,1953.5,1953.4,3.11444]
[1742569154905,1.02429,1953.6,1953.5,1.02425]
[1742569155205,1.02429,1953.6,1953.5,5.92555]
[1742569155703,1.02424,1953.6,1953.5,5.92555]
[1742569155901,1.02424,1953.6,1953.5,9.13335]
[1742569156697,2.34033,1953.7,1953.6,1.02424]
[1742569156899,2.34033,1953.7,1953.6,2.32174]
[1742569157208,2.34033,1953.7,1953.6,3.03344]
[1742569157600,1.024,1954.1,1954.0,1.02398]
[1742569157799,1.02403,1954.0,1953.9,4.53005]
[1742569158009,1.02403,1954.0,1953.9,3.506]
[1742569158199,1.02403,1954.0,1953.9,44.306]
[1742569159099,3.98509,1954.0,1953.7,3.2078]
[1742569159404,1.02408,1953.9,1953.8,3.506]
[1742569159607,2.44908,1953.9,1953.8,3.506]
[1742569160908,2.44908,1953.9,1953.8,4.8908]
[1742569161400,2.44908,1953.9,1953.8,5.91493]
[1742569161602,2.44908,1953.9,1953.8,4.8908]
[1742569161804,2.44908,1953.9,1953.8,5.91493]
[1742569162002,2.44908,1953.9,1953.8,4.8908]
[1742569162308,1.3865,1954.1,1954.0,1.02403]
[1742569162510,2.41049,1954.1,1954.0,4.52903]
[1742569162708,1.3865,1954.1,1954.0,4.52903]
[1742569163107,2.41048,1954.1,1954.0,3.505]
[1742569163602,2.41048,1954.1,1954.0,5.84393]
[1742569163802,2.41048,1954.1,1954.0,4.8199]
[1742569164206,2.41048,1954.1,1954.0,5.84393]
[1742569164411,2.41048,1954.1,1954.0,4.8199]
[1742569164613,2.41048,1954.1,1954.0,5.84393]
[1742569164815,2.41048,1954.1,1954.0,4.8199]
[1742569165318,1.3865,1954.1,1954.0,5.84393]
[1742569165613,2.41048,1954.1,1954.0,5.84393]
[1742569165911,3.74998,1954.1,1954.0,5.84393]
[1742569167308,2.726,1954.1,1954.0,5.84393]
[1742569167509,3.74998,1954.1,1954.0,6.53693]
[1742569168110,3.2078,1954.5,1954.0,5.5129]
[1742569168304,1.3896,1954.3,1954.2,1.02392]
[1742569168506,1.3896,1954.3,1954.2,6.60502]
[1742569169514,0.6489,1954.4,1954.3,1.02387]
[1742569169708,1.02372,1954.6,1954.5,1.02374]
[1742569170316,2.0385,1954.7,1954.6,1.02371]
[1742569170515,0.6489,1954.7,1954.6,4.52771]
[1742569170711,24.03225167,1954.8,1954.7,1.02366]
[1742569171011,25.05586167,1954.8,1954.7,2.39476]
[1742569171209,25.75956167,1954.8,1954.7,2.39476]
[1742569171412,24.73595167,1954.8,1954.7,2.39476]
[1742569171614,25.75956167,1954.8,1954.7,2.39476]
[1742569171912,0.7037,1954.8,1954.7,2.39476]
[1742569172404,0.695,1954.9,1954.8,1.02361]
[1742569172609,1.71856,1954.9,1954.8,2.33201]
[1742569173111,1.71856,1954.9,1954.8,2.99601]
[1742569173308,1.72724,1955.0,1954.9,1.02356]
[1742569173513,1.7272,1955.0,1954.9,5.83596]
[1742569174323,0.7037,1955.0,1954.9,5.83596]
[1742569174517,0.7037,1955.0,1954.9,9.04376]
[1742569174715,0.7037,1955.0,1954.9,5.83496]
[1742569175912,1.7272,1955.0,1954.9,5.83496]
[1742569176321,0.7037,1955.0,1954.9,5.83496]
[1742569176823,2.55828,1955.4,1955.1,1.02345]
[1742569177122,1.02343,1955.2,1955.1,1.02344]
[1742569177316,1.02343,1955.2,1955.1,3.503]
[1742569178016,1.11233225,1955.2,1955.1,3.503]
[1742569179012,1.02356,1954.9,1954.8,3.00487]
[1742569179213,1.02356,1954.9,1954.8,1.9813]
[1742569179412,1.02356,1954.9,1954.8,6.50691]
[1742569180017,0.7024,1955.0,1954.9,1.02356]
[1742569180328,1.7259,1955.0,1954.9,2.36736]
[1742569180722,1.7259,1955.0,1954.9,1.3438]
[1742569181027,1.7259,1955.0,1954.9,3.502]
[1742569181230,1.7259,1955.0,1954.9,4.52556]
[1742569181426,0.7024,1955.0,1954.9,5.86936]
[1742569181827,1.7259,1955.0,1954.9,5.86936]
[1742569182029,1.7259,1955.0,1954.9,4.8458]
[1742569182930,1.0235,1955.0,1954.9,5.86931]
[1742569183125,1.0235,1955.0,1954.9,4.8458]
[1742569183627,1.02361,1954.8,1954.7,1.02362]
[1742569183930,1.02361,1954.8,1954.7,2.41282]
[1742569184124,1.02361,1954.8,1954.7,1.3892]
[1742569184327,1.02377,1954.5,1954.4,1.03146813]
[1742569184533,1.02377,1954.5,1954.4,4.53346813]
[1742569184934,1.02374,1954.6,1954.5,1.02371]
[1742569185230,1.02374,1954.6,1954.5,4.8912]
[1742569185534,2.55823,1955.5,1955.0,2.55869]
[1742569185730,3.2078,1955.7,1955.0,2.55869]
[1742569185731,1.72599,1955.4,1955.3,1.02329]
[1742569186233,1.02335,1955.3,1955.2,5.62037]
[1742569186533,2.33385,1955.3,1955.2,5.62037]
[1742569187235,1.0234,1955.2,1955.1,4.52541]
[1742569187451,1.0234,1955.2,1955.0,4.932]
[1742569187452,1.02345,1955.1,1955.0,4.932]
[1742569187636,1.72645,1955.1,1955.0,4.932]
[1742569187942,1.72645,1955.1,1955.0,1.431]
[1742569187943,3.03695,1955.1,1955.0,1.431]
[1742569188140,3.03695,1955.1,1955.0,5.9555]
[1742569188332,9.848,1955.6,1955.0,3.501]
[1742569188333,2.55836,1955.4,1955.0,3.501]
[1742569188537,0.6723,1955.4,1955.1,3.2078]
[1742569188734,1.02335,1955.3,1955.2,4.52436]
[1742569189532,1.69562,1955.4,1955.3,1.02335]
[1742569189733,1.02335,1955.3,1955.2,4.52436]
[1742569189939,3.11165,1955.3,1955.2,4.52436]
[1742569190832,5.76588,1955.6,1955.5,1.02324]
[1742569190833,3.2078,1955.6,1955.5,1.02324]
[1742569191032,3.93108,1956.1,1955.6,2.55786]
[1742569191338,2.0609,1956.0,1955.9,1.02301]
[1742569191636,3.08388,1956.0,1955.9,1.02301]
[1742569192044,1.02303,1955.9,1955.8,2.39806]
[1742569192245,1.02309,1955.8,1955.7,5.18946813]
[1742569192548,1.02309,1955.8,1955.7,6.56026813]
[1742569193044,1.02309,1955.8,1955.7,6.55926813]
[1742569193345,1.3537,1955.9,1955.7,5.53617813]
[1742569193538,2.37675,1955.9,1955.8,1.02309]
[1742569193738,2.37675,1955.9,1955.8,2.39389]
[1742569193940,2.37675,1955.9,1955.8,1.3708]
[1742569194640,1.02309,1955.8,1955.7,8.39629813]
[1742569194840,2.37679,1955.8,1955.7,8.39629813]
[1742569195341,2.37679,1955.8,1955.7,7.37317813]
[1742569195537,2.37679,1955.8,1955.7,6.71547813]
[1742569196039,2.37679,1955.8,1955.7,7.73861813]
[1742569197045,2.37679,1955.8,1955.7,6.71547813]
[1742569197542,2.37679,1955.8,1955.7,0.00767813]
[1742569199038,2.37679,1955.8,1955.7,1.37947813]
[1742569199446,2.37679,1955.8,1955.7,0.00767813]
[1742569199738,1.0234,1955.2,1955.1,7.7312]
[1742569199949,1.0234,1955.2,1955.1,9.103]
[1742569200338,9.848,1955.7,1955.1,8.0796]
[1742569200541,2.36534,1955.7,1955.6,1.02312]
[1742569200939,2.36534,1955.7,1955.6,3.08792]
[1742569201137,1.3422,1955.7,1955.6,3.08792]
[1742569201541,1.03074246,1955.8,1955.7,1.02314]
[1742569201744,1.03074246,1955.8,1955.7,9.10484]
[1742569202345,0.00761246,1955.8,1955.7,9.10484]
[1742569202744,1.02285,1956.3,1956.2,1.02282]
[1742569203245,1.02293,1956.1,1956.0,4.52194]
[1742569203442,1.02293,1956.1,1956.0,5.89584]
[1742569203646,1.02314,1955.7,1955.6,4.192]
[1742569203949,2.55774,1955.8,1955.5,0.00767813]
[1742569204146,1.02319,1955.6,1955.5,1.03089813]
[1742569204753,0.6673,1955.7,1955.5,1.03089813]
[1742569204754,0.6673,1955.7,1955.6,1.02319]
[1742569204952,1.0231,1955.9,1955.8,1.02305]
[1742569205150,1.02314,1955.8,1955.7,1.02311]
[1742569205453,1.383,1955.9,1955.7,1.3789]
[1742569205857,2.40603,1955.9,1955.8,1.02309]
[1742569206156,1.02303,1955.9,1955.8,1.02309]
[1742569206753,3.883,1955.9,1955.6,3.2078]
[1742569207051,1.02319,1955.6,1955.5,0.00767813]
[1742569207648,1.02319,1955.6,1955.5,1.03091813]
[1742569207951,2.43509,1955.6,1955.5,2.32661813]
[1742569208454,1.02319,1955.6,1955.5,2.32661813]
[1742569209145,1.71599,1955.6,1955.5,2.32661813]
[1742569209342,1.4119,1955.7,1955.5,2.98951813]
[1742569209556,1.02319,1955.6,1955.5,2.98951813]
[1742569209858,2.43507,1955.7,1955.6,1.02319]
[1742569210054,1.02319,1955.6,1955.5,2.98946813]
[1742569210252,1.02319,1955.6,1955.5,5.46527813]
[1742569210557,1.71599,1955.6,1955.5,4.80237813]
[1742569210955,3.12299,1955.6,1955.5,5.82561813]
[1742569211151,3.12299,1955.6,1955.5,4.80237813]
[1742569211851,3.12299,1955.6,1955.5,0.00767813]
[1742569212858,3.12299,1955.6,1955.5,1.03091813]
[1742569213154,3.12299,1955.6,1955.5,1.32087813]
[1742569213757,3.12299,1955.6,1955.5,0.00767813]
[1742569214256,3.12299,1955.6,1955.5,1.03091813]
[1742569214759,2.0998,1955.6,1955.5,2.40101813]
[1742569214964,8.32193,1956.4,1955.6,1.02319]
[1742569215256,1.02314,1955.8,1955.7,4.23094]
[1742569215452,1.02314,1955.7,1955.6,2.39326]
[1742569215653,2.40104,1955.7,1955.6,2.39326]
[1742569216856,2.40104,1955.7,1955.6,1.3701]
[1742569217052,2.40104,1955.7,1955.6,2.39329]
[1742569218256,1.3779,1955.7,1955.6,2.39329]
[1742569218856,2.40104,1955.7,1955.6,2.39329]
[1742569219057,3.07194,1955.7,1955.6,2.39329]
[1742569219557,1.02319,1955.6,1955.5,0.00767813]
[1742569219754,1.02319,1955.6,1955.3,3.2078]
[1742569219755,1.02329,1955.4,1955.3,3.2078]
[1742569220656,1.356,1955.6,1955.3,3.2078]
[1742569220962,2.38686813,1955.6,1955.5,1.02324]
[1742569221365,1.02324,1955.5,1955.4,2.40239]
[1742569221660,2.37924,1955.5,1955.4,2.40239]
[1742569221862,1.356,1955.5,1955.4,2.40239]
[1742569222860,2.37924,1955.5,1955.4,2.40239]
[1742569223060,1.02329,1955.4,1955.3,1.03102813]
[1742569223253,3.09799,1955.4,1955.3,2.45442813]
[1742569223455,2.0747,1955.4,1955.3,2.45442813]
[1742569223656,1.02327,1955.5,1955.4,1.02329]
[1742569223855,1.02327,1955.5,1955.4,2.44669]
[1742569224051,2.41747,1955.5,1955.4,2.44669]
[1742569225661,0.00767813,1955.6,1955.5,1.02324]
[1742569225855,0.00767813,1955.6,1955.5,2.35834]
[1742569226056,0.00767813,1955.6,1955.5,3.03374]
[1742569226256,0.00767813,1955.6,1955.5,6.24154]
[1742569228159,1.03086813,1955.6,1955.5,6.24154]
[1742569228360,1.74046813,1955.6,1955.5,6.24154]
[1742569228562,1.74046813,1955.6,1955.5,2.35834]
[1742569228764,0.71727813,1955.6,1955.5,2.35834]
[1742569228962,0.71727813,1955.6,1955.5,5.56614]
[1742569229162,2.14537813,1955.6,1955.5,5.56614]
[1742569229962,0.00767813,1955.6,1955.5,5.56614]
[1742569230949,1.02297,1956.1,1956.0,1.02294]
[1742569231154,1.3383,1956.2,1956.1,1.02293]
[1742569231360,9.848,1956.7,1956.1,5.11466]
[1742569231663,0.6515,1956.4,1956.3,1.02282]
[1742569231860,1.67427,1956.4,1956.3,1.02282]
[1742569232364,1.02282,1956.3,1956.2,1.03053813]
[1742569232554,1.02282,1956.3,1956.2,0.00767813]
[1742569232555,2.32362,1956.3,1956.2,0.00767813]
[1742569232956,1.38965337,1956.3,1956.2,0.00767813]
[1742569233163,1.38965337,1956.3,1956.2,1.03055813]
[1742569233164,1.3008,1956.3,1956.2,1.03055813]
[1742569233863,2.32362,1956.3,1956.2,1.03055813]
[1742569234359,2.32362,1956.3,1956.2,0.00767813]
[1742569234762,1.02293,1956.1,1956.0,1.02295]
[1742569234965,1.02303,1955.9,1955.8,3.499]
[1742569235166,1.02309,1955.8,1955.7,1.0231]
[1742569235466,1.02314,1955.7,1955.6,1.02314]
[1742569235659,2.1189,1955.7,1955.6,1.02319]
[1742569236454,3.14207,1955.7,1955.6,1.02319]
[1742569236768,3.14204,1955.7,1955.6,1.02319]
[1742569237664,3.14204,1955.7,1955.5,1.42447813]
[1742569237665,0.00767813,1955.8,1955.5,1.42447813]
[1742569237864,8.13e-06,1955.8,1955.7,1.02314]
[1742569238163,8.13e-06,1955.8,1955.7,5.85784]
[1742569241265,1.02278,1956.5,1956.4,1.02273]
[1742569241568,2.33732,1956.5,1956.4,4.52073]
[1742569241760,1.02272,1956.5,1956.4,7.72853]
[1742569242263,1.02272,1956.5,1956.4,9.09313]
[1742569243168,1.02272,1956.5,1956.4,6.7058]
[1742569243464,1.02272,1956.5,1956.4,3.498]
[1742569243671,1.02272,1956.5,1956.4,4.52077]
[1742569244570,1.02272,1956.5,1956.4,5.87477]
[1742569245076,1.02277,1956.4,1956.3,1.02279]
[1742569245259,1.02282,1956.3,1956.2,5.87483]
[1742569245458,2.39162,1956.3,1956.2,5.87483]
[1742569245670,1.3688,1956.3,1956.2,9.08263]
[1742569247065,2.39162,1956.3,1956.2,9.08263]
[1742569247463,1.4069,1956.7,1956.4,2.55683]
[1742569247660,1.326,1956.5,1956.4,1.02277]
[1742569247865,1.326,1956.5,1956.4,5.19347]
[1742569248374,2.34872,1956.5,1956.4,5.19347]
[1742569248573,1.326,1956.5,1956.4,5.19347]
[1742569248766,2.34872,1956.5,1956.4,5.19347]
[1742569249374,1.326,1956.5,1956.4,8.40127]
[1742569249780,2.34872,1956.5,1956.4,8.40127]
[1742569249967,1.326,1956.5,1956.4,8.40127]
[1742569250876,1.4069,1956.7,1956.6,1.02267]
[1742569251176,0.701,1956.7,1956.6,4.51967]
[1742569251472,1.3497,1956.8,1956.7,1.02261]
[1742569251673,1.3497,1956.8,1956.6,6.7048]
[1742569251674,1.73864,1956.9,1956.8,1.02256]
[1742569251879,0.7161,1956.9,1956.8,1.02256]
[1742569252468,1.73861,1956.9,1956.8,1.02256]
[1742569253080,1.02261,1956.7,1956.6,4.51963]
[1742569253669,0.7161,1956.9,1956.5,3.50467813]
[1742569253864,0.7161,1956.9,1956.6,1.02264]
[1742569253865,1.02265,1956.7,1956.6,1.02264]
[1742569254176,1.02265,1956.7,1956.6,4.23044]
[1742569254564,1.02267,1956.6,1956.5,4.52734813]
[1742569254770,1.02266,1956.7,1956.6,1.02264]
[1742569254969,1.02266,1956.7,1956.6,4.23044]
[1742569255477,1.02266,1956.7,1956.6,1.02264]
[1742569255678,1.02266,1956.7,1956.6,4.23044]
[1742569256065,1.02267,1956.6,1956.5,4.52735813]
[1742569256467,1.02267,1956.6,1956.5,0.00767813]
[1742569257079,1.02267,1956.6,1956.2,3.2078]
[1742569257080,1.02282,1956.3,1956.2,3.497]
[1742569258175,1.02288,1956.2,1956.1,1.03058813]
[1742569258370,1.02288,1956.2,1956.1,3.50467813]
[1742569258567,1.02288,1956.2,1956.1,0.00767813]
[1742569259873,2.55734,1956.1,1955.7,3.2078]
[1742569260079,1.02319,1955.6,1955.5,0.6963]
[1742569260281,2.55759,1955.9,1955.5,0.6963]
[1742569260282,1.02318,1955.7,1955.6,1.02318]
[1742569260468,1.02318,1955.7,1955.6,4.23098]
[1742569260782,1.02319,1955.6,1955.5,4.1933]
[1742569260976,1.02319,1955.6,1955.5,0.6963]
[1742569261275,1.02319,1955.6,1955.5,1.71954]
[1742569261470,1.02319,1955.6,1955.5,0.6963]
[1742569261875,1.02324,1955.5,1955.4,55.00272813]
[1742569262278,2.55772,1955.8,1955.4,53.97947813]
[1742569262472,1.02324,1955.5,1955.4,55.00271813]
[1742569262682,1.02322,1955.6,1955.5,1.02318]
[1742569263775,1.02324,1955.5,1955.4,55.00272813]
[1742569263970,1.02324,1955.5,1955.4,50.48247813]
[1742569264175,1.02324,1955.5,1955.4,0.00767813]
[1742569265878,1.11213305,1955.5,1955.4,0.00767813]
[1742569266086,1.02324,1955.5,1955.4,0.00767813]
[1742569266387,1.11213178,1955.5,1955.4,0.00767813]
[1742569266580,1.02324,1955.5,1955.4,0.00767813]
[1742569266779,2.99684,1955.5,1955.4,0.00767813]
[1742569267486,2.99684,1955.5,1955.4,1.41367813]
[1742569269186,2.99684,1955.5,1955.4,0.00767813]
[1742569269578,1.9736,1955.5,1955.4,0.00767813]
[1742569269880,2.99684,1955.5,1955.4,0.00767813]
[1742569270179,1.0235,1955.0,1954.9,50.4798]
[1742569270372,2.55838,1955.3,1954.9,49.72776]
[1742569270571,1.02347,1955.1,1955.0,1.02348]
[1742569270782,1.4222,1955.2,1955.0,2.45568]
[1742569270983,1.02345,1955.1,1955.0,2.4557]
[1742569271283,1.0235,1955.0,1954.9,3.2078]
[1742569271585,2.4407,1955.0,1954.9,0.00767813]
[1742569273087,3.0976,1955.0,1954.9,0.00767813]
[1742569273275,3.7882,1955.0,1954.9,0.00767813]
[1742569273886,3.87711726,1955.0,1954.9,0.00767813]
[1742569274088,3.7882,1955.0,1954.9,0.00767813]
[1742569274982,1.02371,1954.6,1954.5,3.498]
[1742569275287,1.02371,1954.6,1954.5,9.11167]
[1742569275592,1.02371,1954.6,1954.5,8.0879]
[1742569275887,1.3126,1954.7,1954.5,9.11166]
[1742569276188,1.02363,1954.8,1954.7,1.02363]
[1742569276487,1.02363,1954.8,1954.7,4.23146]
[1742569277283,1.3126,1954.9,1954.8,1.02361]
[1742569277478,2.33616,1954.9,1954.8,3.08291]
[1742569277787,2.33616,1954.9,1954.8,2.0593]
[1742569277983,2.33616,1954.9,1954.8,3.08291]
[1742569278487,2.33616,1954.9,1954.8,2.0593]
[1742569278687,2.33616,1954.9,1954.7,7.72943]
[1742569278688,1.02361,1954.8,1954.7,3.498]
[1742569278875,1.02366,1954.7,1954.6,1.3664]
[1742569279586,2.39186,1954.7,1954.6,1.3664]
[1742569281486,1.02359,1954.9,1954.6,1.3664]
[1742569281687,2.0699,1955.0,1954.8,4.2314]
[1742569281891,1.02356,1955.0,1954.9,1.02356]
[1742569282091,1.02356,1955.0,1954.9,1.73736]
[1742569284494,0.00767813,1955.2,1954.9,3.27264]
[1742569284696,1.03111813,1955.2,1955.1,1.02345]
[1742569285394,1.02345,1955.1,1955.0,6.7068]
[1742569285599,2.37425,1955.1,1955.0,4.5225]
[1742569286094,0.00767813,1955.2,1955.1,1.02345]
[1742569286484,2.37403,1955.6,1955.5,1.02324]
[1742569286997,1.3508,1955.6,1955.5,1.02324]
[1742569287597,1.3508,1955.6,1955.4,1.71196]
[1742569287798,1.02324,1955.5,1955.4,0.69637813]
[1742569287994,1.02324,1955.5,1955.4,0.00767813]
[1742569288193,1.68844,1955.5,1955.4,0.00767813]
[1742569288589,5.18644,1955.5,1955.4,0.00767813]
[1742569289104,5.27533151,1955.5,1955.4,0.00767813]
[1742569289593,6.61464,1955.5,1955.4,0.00767813]
[1742569290588,1.0234,1955.2,1955.1,6.7058]
[1742569290999,1.0234,1955.2,1955.1,4.52145]
[1742569291194,1.0234,1955.2,1955.1,3.498]
[1742569292103,1.02345,1955.1,1955.0,1.03117813]
[1742569292300,1.02345,1955.1,1955.0,4.23897813]
[1742569292598,1.02333,1955.4,1955.0,5.77421813]
[1742569292798,2.40423,1955.4,1955.3,4.2311]
[1742569292997,2.40423,1955.4,1955.3,1.0233]
[1742569293301,2.40425,1955.4,1955.3,1.02335]
[1742569293502,1.02335,1955.3,1955.2,1.67846]
[1742569293695,2.40425,1955.3,1955.2,1.67846]
[1742569294092,1.3809,1955.3,1955.2,1.67846]
[1742569294303,1.3552,1955.5,1955.4,1.02329]
[1742569294500,2.0709,1955.5,1955.4,1.02329]
[1742569294699,1.02322,1955.6,1955.5,1.02324]
[1742569294898,3.50567813,1955.7,1955.6,1.02319]
[1742569294899,1.38857813,1955.7,1955.6,1.02319]
[1742569295207,1.38857813,1955.7,1955.6,1.70339]
[1742569295596,0.00767813,1955.7,1955.6,1.70339]
[1742569296603,1.023,1956.0,1955.8,1.02305]
[1742569296905,1.023,1956.0,1955.9,1.3251]
[1742569297095,1.02303,1955.9,1955.8,3.498]
[1742569297496,1.02309,1955.8,1955.7,1.3251]
[1742569299004,1.02324,1955.5,1955.4,6.7048]
[1742569299394,1.02324,1955.5,1955.4,3.2078]
[1742569299599,1.02329,1955.4,1955.3,47.9865]
[1742569300001,1.02335,1955.3,1955.2,3.2078]
[1742569300200,1.02333,1955.4,1955.3,1.02333]
[1742569300401,5.76539,1955.9,1955.2,10.56828]
[1742569300707,1.02312,1955.8,1955.7,4.23092]
[1742569300999,2.39306,1955.9,1955.7,3.2078]
[1742569301200,1.03069813,1956.0,1955.9,1.02303]
[1742569301410,1.03069813,1956.0,1955.9,0.6801]
[1742569301802,1.02309,1955.8,1955.7,6.7048]
[1742569302000,1.02309,1955.8,1955.7,9.12354]
[1742569303407,1.02314,1955.7,1955.6,0.6801]
[1742569303611,1.02319,1955.6,1955.5,8.1004]
[1742569304009,1.02319,1955.6,1955.5,4.8926]
[1742569304210,1.02319,1955.6,1955.5,5.62664]
[1742569304411,1.02317,1955.7,1955.6,1.02316]
[1742569305112,1.02312,1955.8,1955.7,1.02311]
[1742569305409,1.02307,1955.9,1955.8,1.02309]
[1742569305613,1.02307,1955.9,1955.8,5.23579]
[1742569306216,1.02314,1955.7,1955.6,4.52018]
[1742569306410,1.02314,1955.7,1955.6,3.497]
[1742569306712,1.02324,1955.5,1955.4,3.497]
[1742569306916,1.02324,1955.5,1955.4,4.52029]
[1742569307211,1.02324,1955.5,1955.4,1.02329]
[1742569307415,1.02329,1955.4,1955.3,4.9468]
[1742569308509,1.02327,1955.5,1955.4,1.02322]
[1742569308914,1.02327,1955.5,1955.4,3.497]
[1742569309416,1.02327,1955.5,1955.4,4.52029]
[1742569310119,1.02324,1955.5,1955.4,4.52024]
[1742569310920,1.02314,1955.8,1955.7,1.02309]
[1742569311334,1.02314,1955.7,1955.6,4.52015]
[1742569311933,1.02313,1955.8,1955.7,1.02309]
[1742569312232,1.02313,1955.8,1955.7,1.68609]
[1742569313020,1.02313,1955.8,1955.7,0.663]
[1742569313226,1.02313,1955.8,1955.7,1.68614]
[1742569313430,1.02313,1955.8,1955.7,0.663]
[1742569313625,3.8673,1955.9,1955.5,4.231]
[1742569313838,1.02324,1955.5,1955.4,3.497]
[1742569314030,1.02324,1955.5,1955.4,4.52029]
[1742569314534,1.02324,1955.5,1955.4,3.497]
[1742569314733,1.02324,1955.5,1955.4,4.52029]
[1742569314930,1.02329,1955.4,1955.3,3.2078]
[1742569315131,1.0234,1955.2,1955.1,7.72821]
[1742569315327,1.0234,1955.2,1955.1,4.52041]
[1742569316037,1.02338,1955.3,1955.2,1.02335]
[1742569316731,2.40125,1955.3,1955.2,5.57715]
[1742569317334,2.40125,1955.3,1955.2,4.5538]
[1742569317528,2.40125,1955.3,1955.2,1.346]
[1742569321032,1.02335,1955.3,1955.2,1.346]
[1742569321338,1.02335,1955.3,1955.2,4.5538]
[1742569321738,1.0234,1955.2,1955.1,3.497]
[1742569321938,2.3384,1955.2,1955.1,4.9091]
[1742569322127,1.02345,1955.1,1955.0,0.00767813]
[1742569322436,2.33845,1955.1,1955.0,1.41977813]
[1742569322630,2.33845,1955.1,1955.0,2.44327813]
[1742569323142,2.33845,1955.1,1955.0,1.41977813]
[1742569324032,1.02342,1955.3,1955.2,1.02337]
[1742569324234,1.02342,1955.2,1955.1,1.0234]
[1742569324632,1.02336,1955.4,1955.3,1.02333]
[1742569324937,1.02335,1955.4,1955.3,1.02332]
[1742569325238,1.02337,1955.3,1955.2,1.02335]
[1742569325439,2.43067,1955.3,1955.2,2.36145]
[1742569326037,2.43067,1955.3,1955.2,1.3381]
[1742569327142,1.02345,1955.1,1955.0,6.71247813]
[1742569327336,1.02345,1955.1,1955.0,4.63917813]
[1742569327730,2.41005,1955.1,1955.0,4.63917813]
[1742569327934,2.41005,1955.1,1955.0,1.43137813]
[1742569328439,2.41005,1955.1,1955.0,0.00767813]
[1742569328937,4.5944,1955.1,1954.6,0.0986]
[1742569329143,1.02361,1954.8,1954.7,1.4237]
[1742569329442,1.02371,1954.6,1954.5,4.23154]
[1742569329841,1.02371,1954.6,1954.5,5.60834]